bitfinex/quotes_BTCUSD_20250527
["timestamp","ask_amount","ask_price","bid_price","bid_amount"]
[1748387971629,0.22310736,109030.0,109020.0,0.08648]
[1748387974346,0.22310736,109030.0,109020.0,0.001]
[1748387974577,0.22310736,109030.0,109020.0,0.08752]
[1748387974805,0.22310736,109030.0,109020.0,0.001]
[1748387975021,0.22310736,109030.0,109020.0,0.08752]
[1748387975899,0.22310736,109030.0,109020.0,0.001]
[1748387976112,0.22310736,109030.0,109020.0,0.08752]
[1748387976440,0.24366632,109030.0,109020.0,0.001]
[1748387976883,0.22310736,109030.0,109020.0,0.08752]
[1748387986395,0.22310736,109030.0,109020.0,0.10752]
[1748387987716,0.22310736,109030.0,109020.0,0.10744]
[1748387991463,0.22312503,109020.0,109010.0,0.61272824]
[1748387991677,0.22312503,109020.0,109010.0,0.69916824]
[1748387992777,0.22312503,109020.0,109010.0,0.70316824]
[1748387995463,0.22312503,109020.0,109010.0,0.36316824]
[1748387995464,0.26378605,109020.0,109010.0,0.36316824]
[1748387996127,0.26378605,109020.0,109010.0,0.37173233]
[1748387996561,0.26378605,109020.0,109010.0,0.36973233]
[1748387996769,0.26378605,109020.0,109010.0,0.37173233]
[1748387996982,0.26378605,109020.0,109010.0,0.38973233]
[1748387997197,0.26378605,109020.0,109010.0,0.38773233]
[1748387997427,0.26378605,109020.0,109010.0,0.38116824]
[1748387997856,0.26378605,109020.0,109010.0,0.37916824]
[1748387998290,0.26578605,109020.0,109010.0,0.37916824]
[1748388000308,0.22512503,109020.0,109010.0,0.37916824]
[1748388001626,0.22512503,109020.0,109010.0,0.10644]
[1748388002072,0.22512503,109020.0,109010.0,3.08834435]
[1748388002073,0.002,109020.0,109010.0,3.08834435]
[1748388002297,0.02750828,109050.0,109040.0,2.530582]
[1748388002526,0.01833877,109050.0,109040.0,2.89315695]
[1748388002747,0.02750828,109050.0,109040.0,2.89315695]
[1748388003257,0.00916934,109050.0,109040.0,2.53894903]
[1748388003474,0.00916934,109050.0,109040.0,2.66220442]
[1748388003688,0.00916934,109050.0,109040.0,2.67137477]
[1748388004124,0.01833885,109050.0,109040.0,2.67137477]
[1748388004344,0.19417051,109060.0,109050.0,0.85621822]
[1748388004345,0.00154,109060.0,109050.0,0.85621822]
[1748388004559,0.01987717,109060.0,109050.0,0.96267217]
[1748388004775,0.02904601,109060.0,109050.0,0.96267217]
[1748388005214,0.03821502,109060.0,109050.0,0.96267217]
[1748388005428,0.04738411,109060.0,109050.0,0.96267217]
[1748388005638,0.04747479,109060.0,109050.0,0.96467217]
[1748388005858,0.04747479,109060.0,109050.0,0.96667217]
[1748388006081,0.02913669,109060.0,109050.0,0.96667217]
[1748388006303,0.0383057,109060.0,109050.0,0.96667217]
[1748388006743,0.02913669,109060.0,109050.0,0.96667217]
[1748388006979,0.03830578,109060.0,109050.0,0.97737217]
[1748388007431,0.03830578,109060.0,109050.0,0.96667217]
[1748388009571,0.0383057,109060.0,109050.0,1.26597217]
[1748388010857,0.03830561,109060.0,109050.0,1.26597217]
[1748388011070,0.02913669,109060.0,109050.0,1.26597217]
[1748388011290,0.01996785,109060.0,109050.0,1.26597217]
[1748388011530,0.01079918,109060.0,109050.0,1.26597217]
[1748388011762,0.01996785,109060.0,109050.0,1.26597217]
[1748388012012,0.02913677,109060.0,109050.0,1.26597217]
[1748388012247,0.00163068,109060.0,109050.0,1.26597217]
[1748388012459,0.00163068,109060.0,109050.0,1.27667217]
[1748388012460,0.01079935,109060.0,109050.0,1.27667217]
[1748388013119,0.01996803,109060.0,109050.0,1.27667217]
[1748388013352,0.01996803,109060.0,109050.0,1.30417117]
[1748388013803,0.01996811,109060.0,109050.0,1.30417117]
[1748388014350,0.21252308,109060.0,109050.0,1.54700205]
[1748388014567,0.21252308,109060.0,109050.0,1.565342]
[1748388015411,0.21252308,109060.0,109050.0,1.266042]
[1748388015860,0.21252308,109060.0,109050.0,1.2752116]
[1748388018485,0.21252308,109060.0,109050.0,0.926042]
[1748388018701,0.20335424,109060.0,109050.0,0.926042]
[1748388018918,0.20335424,109060.0,109050.0,1.012402]
[1748388019133,0.20335424,109060.0,109050.0,0.997002]
[1748388019774,0.20349337,109060.0,109050.0,0.997002]
[1748388020195,0.20349337,109060.0,109050.0,1.00617176]
[1748388020403,0.20349337,109060.0,109050.0,0.716002]
[1748388020612,0.20349337,109060.0,109050.0,0.98783215]
[1748388020803,0.19418523,109060.0,109050.0,0.99686304]
[1748388021061,0.19418523,109060.0,109050.0,1.00603297]
[1748388021271,0.19418523,109060.0,109050.0,1.30533297]
[1748388024551,0.19418523,109060.0,109050.0,1.28699302]
[1748388025427,0.18501597,109060.0,109050.0,1.09442082]
[1748388025664,0.20111597,109060.0,109050.0,1.09442082]
[1748388027249,0.20111597,109060.0,109050.0,0.79512082]
[1748388028154,0.20111597,109060.0,109050.0,0.42772082]
[1748388028378,0.20111597,109060.0,109050.0,0.79512082]
[1748388029076,0.20111597,109060.0,109050.0,0.42772082]
[1748388029313,0.20111597,109060.0,109050.0,0.79512082]
[1748388033258,0.20111597,109060.0,109050.0,1.09442082]
[1748388036093,0.19919597,109060.0,109050.0,1.09442082]
[1748388038474,0.19919597,109060.0,109050.0,0.72702082]
[1748388038685,0.19919597,109060.0,109050.0,1.09438082]
[1748388038903,0.19919597,109060.0,109050.0,0.72702082]
[1748388039348,0.19919597,109060.0,109050.0,1.09438082]
[1748388040203,0.19919597,109060.0,109050.0,0.72702082]
[1748388040431,0.19919597,109060.0,109050.0,1.09438082]
[1748388040659,0.21439597,109060.0,109050.0,0.91635295]
[1748388042877,0.21439597,109060.0,109050.0,1.25635295]
[1748388044941,0.21439597,109060.0,109050.0,0.95705295]
[1748388046308,0.21439597,109060.0,109050.0,0.95701295]
[1748388047781,0.18309597,109060.0,109050.0,0.95701295]
[1748388048000,0.19889597,109060.0,109050.0,0.95701295]
[1748388048634,0.19889597,109060.0,109050.0,1.14958498]
[1748388048857,0.19889597,109060.0,109050.0,0.95701295]
[1748388050900,0.19889597,109060.0,109050.0,1.25631295]
[1748388051992,0.19889597,109060.0,109050.0,1.43971505]
[1748388052205,0.19889597,109060.0,109050.0,1.44888515]
[1748388052424,0.19889597,109060.0,109050.0,1.45805517]
[1748388052644,0.19889597,109060.0,109050.0,1.33689111]
[1748388052892,0.19889597,109060.0,109050.0,4.19882017]
[1748388053113,0.19889597,109060.0,109050.0,3.72698217]
[1748388053374,0.19889597,109060.0,109050.0,3.45986815]
[1748388055185,0.02496918,109060.0,109050.0,3.4782076]
[1748388055394,0.21089265,109060.0,109050.0,3.4933076]
[1748388060611,0.21089265,109060.0,109050.0,3.4782076]
[1748388061223,0.02750668,109060.0,109050.0,3.51771796]
[1748388062346,0.00916867,109060.0,109050.0,3.51771796]
[1748388062600,0.0339032,109070.0,109060.0,4.02684617]
[1748388062813,0.25394425,109070.0,109060.0,4.13872451]
[1748388063310,0.24751165,109070.0,109060.0,4.13872451]
[1748388063567,0.05497552,109070.0,109060.0,4.12955584]
[1748388063798,0.24851241,109070.0,109060.0,4.12955584]
[1748388064223,0.04680685,109070.0,109060.0,4.15462451]
[1748388064408,0.0559751,109070.0,109060.0,4.15462451]
[1748388064671,0.2485119,109070.0,109060.0,4.14545584]
[1748388064890,0.24851266,109070.0,109060.0,4.14545584]
[1748388065105,0.03763919,109070.0,109060.0,4.15462451]
[1748388065997,0.01763919,109070.0,109060.0,4.15462451]
[1748388066439,0.01763919,109070.0,109060.0,4.45392451]
[1748388066867,0.0359751,109070.0,109060.0,4.4730464]
[1748388067539,0.02680685,109070.0,109060.0,4.4730464]
[1748388067744,0.0359751,109070.0,109060.0,4.4730464]
[1748388068194,0.02680685,109070.0,109060.0,4.4730464]
[1748388068425,0.0359751,109070.0,109060.0,4.4730464]
[1748388069109,0.03597502,109070.0,109060.0,4.8686864]
[1748388069770,0.04514327,109070.0,109060.0,4.8686864]
[1748388071156,0.23554408,109070.0,109060.0,4.84361781]
[1748388071383,0.23554408,109070.0,109060.0,4.85278657]
[1748388072836,0.22807297,109070.0,109060.0,4.63272541]
[1748388073062,0.20533672,109070.0,109060.0,1.00456556]
[1748388073302,0.20533672,109070.0,109060.0,0.63992556]
[1748388073538,0.20533672,109070.0,109060.0,0.42641761]
[1748388073742,0.20533672,109070.0,109060.0,0.85277761]
[1748388073976,0.20533672,109070.0,109060.0,1.13361761]
[1748388075776,0.20533672,109070.0,109060.0,0.85277761]
[1748388078688,0.20533672,109070.0,109060.0,0.45709761]
[1748388080108,0.18533672,109070.0,109060.0,0.45709761]
[1748388081839,0.18533672,109070.0,109060.0,0.43797572]
[1748388082062,0.18533672,109070.0,109060.0,0.34]
[1748388082279,0.18533672,109070.0,109060.0,0.42632]
[1748388087302,0.16533672,109070.0,109060.0,0.42632]
[1748388087507,0.16762037,109070.0,109060.0,0.42632]
[1748388093659,0.16762037,109070.0,109060.0,0.08632]
[1748388093888,0.22287203,109050.0,109040.0,0.41159208]
[1748388094117,0.22287203,109050.0,109040.0,0.77880276]
[1748388094344,0.22287203,109050.0,109040.0,0.49800276]
[1748388094551,0.22287203,109050.0,109040.0,0.94368576]
[1748388095284,0.22287203,109050.0,109040.0,0.94668576]
[1748388095506,0.22287203,109050.0,109040.0,0.94868576]
[1748388098378,0.20787203,109050.0,109040.0,1.13210468]
[1748388098597,0.20787203,109050.0,109040.0,0.94868576]
[1748388099714,0.20787203,109050.0,109040.0,1.13210468]
[1748388099927,0.20787203,109050.0,109040.0,1.24150043]
[1748388100609,0.20787203,109050.0,109040.0,1.25067112]
[1748388100825,0.19257203,109050.0,109040.0,1.26637112]
[1748388101931,0.19214303,109050.0,109040.0,1.26637112]
[1748388102393,0.19214303,109050.0,109040.0,1.26553112]
[1748388102618,0.19214303,109050.0,109040.0,1.30911293]
[1748388102619,0.00916943,109050.0,109040.0,1.30911293]
[1748388102846,0.02750904,109050.0,109040.0,1.05047443]
[1748388103555,0.02750904,109050.0,109040.0,1.03977443]
[1748388104233,0.02750904,109050.0,109040.0,1.33907443]
[1748388105752,0.03667906,109050.0,109040.0,1.33907443]
[1748388105974,0.22008116,109050.0,109040.0,1.33907443]
[1748388107365,0.22008116,109050.0,109040.0,1.32990408]
[1748388107587,0.22008116,109050.0,109040.0,1.31895359]
[1748388107806,0.23314205,109050.0,109040.0,1.55770025]
[1748388108022,0.23314205,109050.0,109040.0,1.56687119]
[1748388108914,0.23314205,109050.0,109040.0,1.57604205]
[1748388109827,0.22397212,109050.0,109040.0,1.57604205]
[1748388111850,0.2148021,109050.0,109040.0,1.56687119]
[1748388112058,0.2148021,109050.0,109040.0,1.37428133]
[1748388113500,0.2148021,109050.0,109040.0,1.00716133]
[1748388113743,0.2148021,109050.0,109040.0,1.37424133]
[1748388113949,0.2148021,109050.0,109040.0,1.09344133]
[1748388114181,0.2148021,109050.0,109040.0,1.37424133]
[1748388115749,0.2148021,109050.0,109040.0,1.28318738]
[1748388115953,0.2148021,109050.0,109040.0,0.98388738]
[1748388118166,0.2148021,109050.0,109040.0,0.8317738]
[1748388124618,0.2148021,109050.0,109040.0,0.8317338]
[1748388124834,0.2148021,109050.0,109040.0,1.11537761]
[1748388124835,0.21674188,109050.0,109040.0,1.11537761]
[1748388125050,0.20174188,109050.0,109040.0,1.11537761]
[1748388125270,0.20857212,109050.0,109040.0,0.93195869]
[1748388125477,0.2159021,109050.0,109040.0,0.8317338]
[1748388128492,0.2159021,109050.0,109040.0,0.4917338]
[1748388128920,0.2159021,109050.0,109040.0,0.1246938]
[1748388129141,0.2159021,109050.0,109040.0,0.4917338]
[1748388130026,0.18338529,109060.0,109050.0,0.21628256]
[1748388130235,0.01833785,109060.0,109050.0,0.33520342]
[1748388130484,0.01833785,109060.0,109050.0,3.6371211]
[1748388130709,0.21089156,109060.0,109050.0,3.75368266]
[1748388130915,0.22006065,109060.0,109050.0,3.65248451]
[1748388131115,0.03667536,109060.0,109050.0,3.66165402]
[1748388131497,0.24532991,109060.0,109050.0,3.63608451]
[1748388131656,0.05277536,109060.0,109050.0,3.65442362]
[1748388131842,0.05277536,109060.0,109050.0,3.65642362]
[1748388132082,0.03667536,109060.0,109050.0,3.65642362]
[1748388132683,0.22922983,109060.0,109050.0,3.65642362]
[1748388132957,0.22923059,109060.0,109050.0,3.64682611]
[1748388134426,0.03667604,109060.0,109050.0,3.65599562]
[1748388135063,0.22006133,109060.0,109050.0,3.64682611]
[1748388135472,0.22923059,109060.0,109050.0,3.64682611]
[1748388135677,0.22006183,109060.0,109050.0,3.63765651]
[1748388135909,0.23566183,109060.0,109050.0,3.63765651]
[1748388136645,0.23566183,109060.0,109050.0,2.72384078]
[1748388136827,0.23282373,109060.0,109050.0,0.97046978]
[1748388137278,0.23282373,109060.0,109050.0,1.25122978]
[1748388139642,0.23282373,109060.0,109050.0,1.33750978]
[1748388141330,0.23282373,109060.0,109050.0,1.33742978]
[1748388142572,0.23282373,109060.0,109050.0,1.03812978]
[1748388145668,0.23282373,109060.0,109050.0,0.82115078]
[1748388146562,0.23282373,109060.0,109050.0,0.54043078]
[1748388146824,0.23282373,109060.0,109050.0,0.61068178]
[1748388147572,0.16030514,109070.0,109060.0,0.19255447]
[1748388147783,0.16030514,109070.0,109060.0,1.20819942]
[1748388148455,0.16030514,109070.0,109060.0,1.50749942]
[1748388149127,0.03693625,109070.0,109060.0,1.22653701]
[1748388149349,0.21387255,109070.0,109060.0,1.52583718]
[1748388149564,0.21387255,109070.0,109060.0,1.51666834]
[1748388149565,0.22304097,109070.0,109060.0,1.51666834]
[1748388149785,0.23924097,109070.0,109060.0,1.51666834]
[1748388150022,0.23007314,109070.0,109060.0,1.51666834]
[1748388150245,0.21387314,109070.0,109060.0,1.54203718]
[1748388150469,0.21387314,109070.0,109060.0,1.53286834]
[1748388150688,0.21387314,109070.0,109060.0,1.51666834]
[1748388151040,0.20470514,109070.0,109060.0,1.51666834]
[1748388151289,0.22060514,109070.0,109060.0,1.85666851]
[1748388152444,0.22060514,109070.0,109060.0,1.86583752]
[1748388153220,0.21143689,109070.0,109060.0,1.85666851]
[1748388153895,0.21143689,109070.0,109060.0,1.65494495]
[1748388153896,0.20226847,109070.0,109060.0,1.65494495]
[1748388154115,0.21786847,109070.0,109060.0,1.06738695]
[1748388154349,0.21786847,109070.0,109060.0,1.04401995]
[1748388154580,0.21786847,109070.0,109060.0,1.01021995]
[1748388154835,0.21786847,109070.0,109060.0,0.97723695]
[1748388157843,0.21786847,109070.0,109060.0,0.47659395]
[1748388158070,0.23234171,109050.0,109040.0,0.11456986]
[1748388158283,0.23234171,109050.0,109040.0,0.25570081]
[1748388158505,0.23234171,109050.0,109040.0,0.01440974]
[1748388159183,0.23234171,109050.0,109040.0,9.068e-05]
[1748388161611,0.39303788,109050.0,109040.0,9.068e-05]
[1748388163179,0.39603788,109050.0,109040.0,9.068e-05]
[1748388163404,0.23247872,109030.0,109020.0,0.02136163]
[1748388164123,0.23247872,109030.0,109020.0,0.02990515]
[1748388164378,0.23247872,109030.0,109020.0,0.02136163]
[1748388164627,0.23247872,109030.0,109020.0,0.02236163]
[1748388164867,0.23247872,109030.0,109020.0,0.01154301]
[1748388164868,0.3878335,109030.0,109020.0,0.01154301]
[1748388165111,0.3878335,109030.0,109020.0,0.01154434]
[1748388165777,0.32353267,109030.0,109020.0,0.01154434]
[1748388165997,0.32353267,109030.0,109020.0,0.01054434]
[1748388166256,0.32553267,109030.0,109020.0,0.01054434]
[1748388166458,0.32753267,109030.0,109020.0,0.01054434]
[1748388166696,0.32753267,109030.0,109020.0,0.01053179]
[1748388166913,0.74681334,109030.0,109020.0,0.01053179]
[1748388167124,0.66753267,109030.0,109020.0,0.01053179]
[1748388167336,0.66753267,109030.0,109020.0,0.00945179]
[1748388168494,0.66753267,109030.0,109020.0,0.0094484]
[1748388170150,0.32753267,109030.0,109020.0,0.0094484]
[1748388170388,0.32753267,109030.0,109020.0,0.00944143]
[1748388171268,0.32753267,109030.0,109020.0,0.00092]
[1748388171527,0.32753267,109030.0,109020.0,0.00943967]
[1748388171750,0.32753267,109030.0,109020.0,0.00943966]
[1748388171957,0.32753267,109030.0,109020.0,0.00092]
[1748388178914,0.32753267,109030.0,109020.0,0.0094339]
[1748388179162,0.32753267,109030.0,109020.0,0.00943388]
[1748388179734,0.32753267,109030.0,109020.0,0.00092]
[1748388179964,0.23647872,109030.0,109020.0,0.00092]
[1748388180428,0.22077872,109030.0,109020.0,0.00092]
[1748388180671,0.21877872,109030.0,109020.0,0.00092]
[1748388180896,0.22177872,109030.0,109020.0,0.00092]
[1748388181359,0.21877872,109030.0,109020.0,0.00092]
[1748388181630,0.22077872,109030.0,109020.0,0.00092]
[1748388182116,0.21877872,109030.0,109020.0,0.00092]
[1748388182350,0.22077872,109030.0,109020.0,0.00092]
[1748388182575,0.21877872,109030.0,109020.0,0.00092]
[1748388185403,0.20377872,109030.0,109020.0,0.92728]
[1748388185632,0.20377872,109030.0,109020.0,0.644438]
[1748388186089,0.20377872,109030.0,109020.0,0.543863]
[1748388187417,0.20377872,109030.0,109020.0,0.527663]
[1748388187635,0.21907872,109030.0,109020.0,0.469688]
[1748388188753,0.21907872,109030.0,109020.0,0.496451]
[1748388188980,0.21907872,109030.0,109020.0,0.34092]
[1748388188981,0.23477872,109030.0,109020.0,0.34092]
[1748388189224,0.23477872,109030.0,109020.0,0.00092]
[1748388195099,0.21907872,109030.0,109020.0,0.00092]
[1748388195320,0.23467872,109030.0,109020.0,0.00092]
[1748388199397,0.23467872,109030.0,109020.0,0.00244]
[1748388203585,0.36754394,109030.0,109020.0,0.00244]
[1748388203818,0.32573267,109030.0,109020.0,0.00244]
[1748388219966,0.32573267,109030.0,109000.0,0.0866]
[1748388219967,0.18345257,109020.0,109000.0,0.0866]
[1748388220173,0.18575305,109010.0,109000.0,0.0866]
[1748388221424,0.18575305,109010.0,109000.0,0.08709433]
[1748388221862,0.21515257,109020.0,109010.0,3.17962585]
[1748388221863,0.10707112,109020.0,109010.0,3.17962585]
[1748388222084,0.18543575,109030.0,109020.0,0.710295]
[1748388222344,0.18543575,109030.0,109020.0,0.32626]
[1748388222552,0.18543575,109030.0,109020.0,0.0866]
[1748388222983,0.18543575,109030.0,109020.0,0.21149]
[1748388226460,0.18543575,109030.0,109020.0,0.201437]
[1748388227531,0.18543575,109030.0,109020.0,0.206451]
[1748388227939,0.20053575,109030.0,109020.0,0.0866]
[1748388228154,0.20053575,109030.0,109020.0,0.225748]
[1748388228573,0.20053575,109030.0,109020.0,0.0866]
[1748388228779,0.18543575,109030.0,109020.0,0.0866]
[1748388228988,0.18543575,109030.0,109020.0,0.289547]
[1748388230857,0.18543575,109030.0,109020.0,0.23157]
[1748388231108,0.21693575,109030.0,109020.0,0.0866]
[1748388241478,0.21693575,109030.0,109000.0,3.64315997]
[1748388241479,0.20181574,109010.0,109000.0,3.64315997]
[1748388241687,0.20181574,109010.0,109000.0,3.85342263]
[1748388241903,0.21098921,109010.0,109000.0,3.85342263]
[1748388242118,0.21098921,109010.0,109000.0,3.84424874]
[1748388242774,0.21098921,109010.0,109000.0,3.84624874]
[1748388243408,0.21098921,109010.0,109000.0,3.87375974]
[1748388243635,0.20181617,109010.0,109000.0,3.87375974]
[1748388243845,0.20181617,109010.0,109000.0,3.87675974]
[1748388244053,0.20181617,109010.0,109000.0,3.87675991]
[1748388245004,0.20181617,109010.0,109000.0,3.86758577]
[1748388245184,0.1834694,109010.0,109000.0,3.10662377]
[1748388245421,0.1834694,109010.0,109000.0,3.11579808]
[1748388246070,0.1834694,109010.0,109000.0,0.53668213]
[1748388246071,0.1995694,109010.0,109000.0,0.53668213]
[1748388246302,0.2148694,109010.0,109000.0,0.97901213]
[1748388246512,0.1987694,109010.0,109000.0,0.97901213]
[1748388246951,0.1834694,109010.0,109000.0,0.97901213]
[1748388250086,0.1834694,109010.0,109000.0,0.62470395]
[1748388252195,0.1834694,109010.0,109000.0,0.63869844]
[1748388254575,0.00917338,109010.0,109000.0,0.83672552]
[1748388254787,0.21098879,109010.0,109000.0,0.88524768]
[1748388255005,0.22016226,109010.0,109000.0,0.88524768]
[1748388258521,0.02751939,109010.0,109000.0,0.88524768]
[1748388258737,0.21098879,109010.0,109000.0,0.8944214]
[1748388258940,0.02751939,109010.0,109000.0,0.8944214]
[1748388259716,0.22016226,109010.0,109000.0,0.8944214]
[1748388261205,0.22016226,109010.0,109000.0,0.88524768]
[1748388261416,0.21098938,109010.0,109000.0,0.87607388]
[1748388262083,0.21098938,109010.0,109000.0,0.86587388]
[1748388262807,0.21098938,109010.0,109000.0,0.85507388]
[1748388263474,0.20181625,109010.0,109000.0,1.19507388]
[1748388263695,0.20181625,109010.0,109000.0,1.20424785]
[1748388263914,0.20181625,109010.0,109000.0,1.50354785]
[1748388266354,0.19264287,109010.0,109000.0,1.48354612]
[1748388268118,0.19264287,109010.0,109000.0,1.49272026]
[1748388268981,0.19264287,109010.0,109000.0,1.50189431]
[1748388271050,0.1834694,109010.0,109000.0,1.49272026]
[1748388271259,0.1834694,109010.0,109000.0,1.50189431]
[1748388271479,0.18323758,109010.0,109000.0,1.50189431]
[1748388276275,0.18323758,109010.0,109000.0,1.51106828]
[1748388279862,0.19853758,109010.0,109000.0,1.51106828]
[1748388281234,0.21513758,109010.0,109000.0,1.51106828]
[1748388285616,0.21513758,109010.0,109000.0,1.51106786]
[1748388286551,0.23348392,109010.0,109000.0,1.51106744]
[1748388286782,0.24265739,109010.0,109000.0,1.51106744]
[1748388287238,0.24265739,109010.0,109000.0,1.50189364]
[1748388288955,0.24265739,109010.0,109000.0,1.51905711]
[1748388289161,0.24265739,109010.0,109000.0,1.50189364]
[1748388289367,0.24265739,109010.0,109000.0,1.51905717]
[1748388290025,0.24265739,109010.0,109000.0,1.50988328]
[1748388290265,0.24265739,109010.0,109000.0,1.49271975]
[1748388290507,0.24265739,109010.0,109000.0,1.50988335]
[1748388291402,0.24265739,109010.0,109000.0,1.50988348]
[1748388291630,0.24265739,109010.0,109000.0,1.51905737]
[1748388292085,0.24265739,109010.0,109000.0,1.53342678]
[1748388293363,0.24265739,109010.0,109000.0,1.51626305]
[1748388293619,0.24265739,109010.0,109000.0,1.53342677]
[1748388293806,0.24265739,109010.0,109000.0,1.51626305]
[1748388294046,0.24265739,109010.0,109000.0,1.53342679]
[1748388294259,0.24265739,109010.0,109000.0,1.53342683]
[1748388295272,0.24265739,109010.0,109000.0,1.53342689]
[1748388296419,0.24265739,109010.0,109000.0,1.533427]
[1748388296630,0.24265739,109010.0,109000.0,1.5426008]
[1748388296844,0.24265739,109010.0,109000.0,1.54260033]
[1748388297272,0.24265739,109010.0,109000.0,1.54260023]
[1748388297723,0.24265739,109010.0,109000.0,1.52543643]
[1748388297936,0.24265739,109010.0,109000.0,1.54260022]
[1748388298359,0.24265739,109010.0,109000.0,1.54260019]
[1748388299073,0.24265739,109010.0,109000.0,1.52543643]
[1748388299284,0.24265739,109010.0,109000.0,1.54260018]
[1748388299953,0.24265739,109010.0,109000.0,1.52425266]
[1748388301070,0.24265739,109010.0,109000.0,1.54259936]
[1748388301309,0.03229956,109020.0,109010.0,0.21635659]
[1748388301530,0.23664188,109020.0,109010.0,4.66135075]
[1748388301718,0.23664188,109020.0,109010.0,4.66134781]
[1748388301966,0.23664188,109020.0,109010.0,4.6613421]
[1748388302185,0.23664188,109020.0,109010.0,3.65077602]
[1748388302397,0.04401669,109020.0,109010.0,3.66912186]
[1748388302631,0.05318923,109020.0,109010.0,3.66912186]
[1748388302847,0.04401669,109020.0,109010.0,3.66912186]
[1748388303071,0.02751669,109020.0,109010.0,3.65196826]
[1748388303278,0.02751669,109020.0,109010.0,3.66912137]
[1748388303492,0.02751669,109020.0,109010.0,3.66912134]
[1748388303697,0.04401669,109020.0,109010.0,3.66912134]
[1748388304123,0.05318923,109020.0,109010.0,3.66912134]
[1748388304963,0.2366418,109020.0,109010.0,3.66911801]
[1748388305198,0.2518418,109020.0,109010.0,3.66911801]
[1748388305410,0.2518418,109020.0,109010.0,3.96841801]
[1748388305626,0.2518418,109020.0,109010.0,3.96841775]
[1748388306350,0.06838923,109020.0,109010.0,3.96841522]
[1748388306972,0.06838923,109020.0,109010.0,3.96841316]
[1748388307810,0.06838923,109020.0,109010.0,3.95126826]
[1748388308022,0.06838923,109020.0,109010.0,3.96841185]
[1748388308221,0.26101442,109020.0,109010.0,3.96841185]
[1748388308446,0.25184239,109020.0,109010.0,1.89543401]
[1748388308684,0.25184239,109020.0,109010.0,1.67388101]
[1748388308896,0.23349773,109020.0,109010.0,1.65553406]
[1748388309111,0.23349773,109020.0,109010.0,1.67388074]
[1748388309530,0.23349773,109020.0,109010.0,1.65673776]
[1748388309752,0.23349773,109020.0,109010.0,1.67388001]
[1748388310229,0.21515257,109020.0,109010.0,0.77920513]
[1748388310452,0.21515257,109020.0,109010.0,0.01714485]
[1748388310668,0.21515257,109020.0,109010.0,0.35714485]
[1748388310669,0.24245503,109020.0,109010.0,0.35714485]
[1748388310897,0.21515257,109020.0,109010.0,0.35714835]
[1748388311380,0.21515257,109020.0,109010.0,0.34]
[1748388311597,0.21515257,109020.0,109010.0,0.35714937]
[1748388312048,0.21515257,109020.0,109010.0,0.34]
[1748388312288,0.21515257,109020.0,109010.0,0.3571472]
[1748388313224,0.21515257,109020.0,109010.0,0.3571444]
[1748388313904,0.21515257,109020.0,109010.0,0.35714435]
[1748388314589,0.21515257,109020.0,109010.0,0.35713753]
[1748388314788,0.30620652,109020.0,109010.0,0.35713753]
[1748388315205,0.30620652,109020.0,109010.0,0.35713684]
[1748388316267,0.30620652,109020.0,109010.0,0.34]
[1748388316484,0.30620652,109020.0,109010.0,0.35713409]
[1748388316753,0.30620652,109020.0,109010.0,0.35713411]
[1748388316974,0.30620652,109020.0,109010.0,0.34]
[1748388317209,0.30620652,109020.0,109010.0,0.35713408]
[1748388317687,0.31672271,109020.0,109010.0,0.35713408]
[1748388317898,0.31672271,109020.0,109010.0,0.35713187]
[1748388318755,0.31672271,109020.0,109010.0,0.34]
[1748388318756,0.30620652,109020.0,109010.0,0.34]
[1748388318964,0.30620652,109020.0,109010.0,0.35713105]
[1748388320009,0.30620652,109020.0,109010.0,0.35712936]
[1748388320213,0.30620652,109020.0,109010.0,0.34]
[1748388320422,0.30620652,109020.0,109010.0,0.35712839]
[1748388320630,0.30620652,109020.0,109010.0,0.34]
[1748388320841,0.30620652,109020.0,109010.0,0.35712747]
[1748388321578,0.30620652,109020.0,109010.0,0.35712655]
[1748388321759,0.30620652,109020.0,109010.0,0.35712659]
[1748388321993,0.30620652,109020.0,109010.0,0.35712661]
[1748388322203,0.30720652,109020.0,109010.0,0.34]
[1748388323653,0.2248427,109010.0,109000.0,0.10064941]
[1748388324117,0.2248427,109010.0,109000.0,0.1092134]
[1748388324342,0.2248427,109010.0,109000.0,0.10064941]
[1748388324543,0.2248427,109010.0,109000.0,0.10921255]
[1748388324756,0.2248427,109010.0,109000.0,0.10921252]
[1748388324968,0.2248427,109010.0,109000.0,0.10921251]
[1748388325182,0.2248427,109010.0,109000.0,0.10921255]
[1748388325408,0.19266037,109000.0,108990.0,0.90199391]
[1748388325672,0.22476037,109000.0,108990.0,2.23457759]
[1748388326357,0.22476037,109000.0,108990.0,2.13336759]
[1748388326567,0.22476037,109000.0,108990.0,1.71577603]
[1748388327395,0.22476037,109000.0,108990.0,1.71777603]
[1748388327613,0.22476037,109000.0,108990.0,1.71977603]
[1748388328435,0.22476037,109000.0,108990.0,1.67341703]
[1748388328854,0.22476037,109000.0,108990.0,1.56330703]
[1748388329101,0.22476037,109000.0,108990.0,1.41225703]
[1748388329774,0.22476037,109000.0,108990.0,1.06264503]
[1748388330013,0.22476037,109000.0,108990.0,0.35715412]
[1748388330995,0.22476037,109000.0,108990.0,0.35515412]
[1748388331226,0.22476037,109000.0,108990.0,0.35315412]
[1748388334413,0.31581432,109000.0,108990.0,0.35315412]
[1748388336356,0.31581432,109000.0,108990.0,0.01315412]
[1748388337979,0.36574269,109000.0,108990.0,0.01315412]
[1748388338408,0.31581432,109000.0,108990.0,0.01315412]
[1748388345208,0.31581432,109000.0,108990.0,0.02172495]
[1748388346699,0.31581432,109000.0,108990.0,0.02172549]
[1748388346917,0.31581432,109000.0,108990.0,0.02172537]
[1748388347940,0.31581432,109000.0,108990.0,0.0217264]
[1748388348358,0.31581432,109000.0,108990.0,0.01315412]
[1748388348571,0.31581432,109000.0,108990.0,0.0217264]
[1748388349459,0.31581432,109000.0,108990.0,0.01315412]
[1748388349661,0.31581432,109000.0,108990.0,0.02172785]
[1748388350264,0.36574269,109000.0,108990.0,0.0217279]
[1748388350529,0.36574269,109000.0,108990.0,0.02172803]
[1748388350753,0.36574269,109000.0,108990.0,0.01315412]
[1748388351878,0.36674269,109000.0,108990.0,0.01315412]
[1748388352301,0.36774269,109000.0,108990.0,0.01315412]
[1748388352935,0.36774269,109000.0,108990.0,9.068e-05]
[1748388355760,0.22427805,108990.0,108980.0,0.002]
[1748388355971,0.315332,108990.0,108980.0,0.00204941]
[1748388356223,0.39866266,108990.0,108980.0,0.00204941]
[1748388357338,0.40166266,108990.0,108980.0,0.00204941]
[1748388358519,0.40366266,108990.0,108980.0,0.00204941]
[1748388359698,0.68842266,108990.0,108980.0,0.00204941]
[1748388360612,0.40366266,108990.0,108980.0,0.00204941]
[1748388360854,0.68858266,108990.0,108980.0,0.00204941]
[1748388366497,0.40366266,108990.0,108980.0,0.00204941]
[1748388366704,0.68818266,108990.0,108980.0,0.00204941]
[1748388368549,0.604852,108990.0,108980.0,0.00204941]
[1748388369222,0.320332,108990.0,108980.0,0.00204941]